Cogmind - Beta 14 @@@ ROGUE MODE // 2024.12.31 @ 23:13:54 Player: Jirybot Result: Self-destructed Performance ------------- Evolutions (1) 500 Regions Visited (2) 400 Robots Destroyed (34) 170 Value Destroyed (709) 709 Prototype IDs (0) 0 Alien Tech Used (0) 0 Bonus (71) 71 TOTAL SCORE: 1850 Bonus ------- High Alert Combat Kills 71 Cogmind --------- Core Integrity 332/400 Matter 59/300 Energy 250/250 System Corruption 0% Temperature Cool (0) Movement Core (500) Ox9 Location -9/Materials Parts ------- > --- POWER (1) -------- Ion Engine > --- PROPULSION (2) --- (None) > --- UTILITY (4) ------ Large Storage Unit > --- WEAPON (2) ------- Assault Rifle Light Assault Rifle > --- INVENTORY (15) --- Ion Engine Light Ion Engine Wheel Wheel Improved Hover Unit Faulty Improved Flight Unit Sensor Array Light Assault Rifle Peak State ------------ > --- POWER ------------ Ion Engine > --- PROPULSION ------- Light Treads Improved Treads > --- UTILITY ---------- Large Storage Unit Weapon Shielding > --- WEAPON ----------- Heavy EM Pulse Gun Light Assault Rifle > --- INVENTORY -------- Ion Engine Light Ion Engine Wheel Wheel Improved Hover Unit Improved Flight Unit Sensor Array Assault Rifle Light Assault Rifle [Rating: 10] Favorites ----------- Power Ion Engine Engine Ion Engine Propulsion Light Treads Treads Light Treads Utility Weapon Shielding Storage Large Storage Unit Protection Weapon Shielding Weapon Light Assault Rifle Energy Gun Heavy EM Pulse Gun Ballistic Gun Light Assault Rifle Launcher Grenade Launcher Build | -11 -10 -9 ------- Run | Yrd Mat Mat Slots Evolved 2 | . . 2 Power . | . . . Propulsion . | . . . Utility 2 | . . 2 Weapon . | . . . Parts Attached 13 | 6 4 3 Power 1 | 1 . . Engine 1 | 1 . . Core . | . . . Reactor . | . . . Propulsion 3 | 2 . 1 Treads 3 | 2 . 1 Leg . | . . . Wheel . | . . . Hover . | . . . Flight . | . . . Utility 3 | 1 2 . Device . | . . . Storage 2 | 1 1 . Processor . | . . . Hackware . | . . . Protection 1 | . 1 . Artifact . | . . . Weapon 6 | 2 2 2 Energy Gun 1 | . . 1 Energy Cannon . | . . . Ballistic Gun 3 | 2 . 1 Ballistic Cannon . | . . . Launcher 2 | . 2 . Special Weapon . | . . . Impact Weapon . | . . . Slashing Weapon . | . . . Piercing Weapon . | . . . Special Melee Weapon . | . . . Unidentified Prototypes . | . . . Parts Lost 6 | . 1 5 Power . | . . . Propulsion 3 | . . 3 Utility 1 | . . 1 Weapon 2 | . 1 1 Highest Loss Streak 2 | . 1 2 To Critical Strikes . | . . . Average Slot Usage (%) 83 | . 97 63 Engine 12 | . 14 11 Treads 22 | . 28 14 Storage 12 | . 14 11 Protection 9 | . 12 4 Energy Gun 2 | . . 6 Ballistic Gun 14 | . 16 11 Launcher 7 | . 10 3 Peak Build Rating 10 | 6 7 10 Average Rating 7 | 3 6 8 On Entrance 4 | . 6 7 Naked Turns . | . . . Heaviest Build 30 | 13 30 30 Greatest Support 43 | 40 40 43 Greatest Overweight (x) 4 | 4 . 1 Average Overweight (x) . | . . . Largest Inventory Capacity 15 | 8 15 15 Average Capacity 11 | 6 9 15 Most Carried 9 | 4 8 9 Average Carried 6 | 3 5 8 Final Capacity 15 | 8 15 15 Final Carried 8 | 4 7 8 Class Distribution -------------------- 100% | Mutant Dominant Class ---------------- Mutant | -10/Materials Mutant | -9/Materials Resources | -11 -10 -9 ----------- Run | Yrd Mat Mat Matter Collected 567 | 205 314 48 Remotely . | . . . Salvage Created 663 | . 518 145 Parts 50 | . 36 14 Haulers Intercepted 1 | . 1 . Recyclers Shooed . | . . . Parts Field Recycled . | . . . Retrieved Matter . | . . . Parts Self-Destructed . | . . . Prevented . | . . . Kills | -11 -10 -9 ------- Run | Yrd Mat Mat Combat Hostiles Destroyed 22 | . 15 7 Guns 6 | . . 6 AOE 16 | . 15 1 Classes Destroyed 9 | . 8 1 Worker 1 | . 1 . Builder 3 | . 3 . Hauler 1 | . 1 . Recycler 3 | . 3 . Operator 1 | . 1 . Watcher 3 | . 2 1 Swarmer 9 | . 5 4 Grunt 12 | . 10 2 Sentry 1 | . . 1 Best Kill Streak 7 | . 7 4 Combat Bots Only 5 | . 5 4 Max Kills in Single Turn 2 | . 2 1 Gunslinging . | . . . Exploded 2 | . 2 1 Melee . | . . . Uniques/NPCs Destroyed . | . . . Combat | -11 -10 -9 -------- Run | Yrd Mat Mat Hostile Shots Fired 87 | . 40 47 Missed 23 | . 13 10 Damage Taken 923 | . 428 495 Core 170 | . 102 68 Absorbed by Shields . | . . . Redirected to Shielding 50 | . 36 14 Core Remaining (%) 79 | 100 59 . Volleys Fired 65 | . 40 25 Largest 2 | . 2 2 Hottest 65 | . 50 65 Shots Fired 87 | . 47 40 Gun 41 | . 10 31 Cannon . | . . . Launcher 46 | . 37 9 Special . | . . . Kinetic 32 | . 10 22 Thermal . | . . . Explosive 46 | . 37 9 Electromagnetic 9 | . . 9 Robot Hit Streak 10 | . 8 10 Robot Miss Streak 4 | . 4 4 Penetration Max . | . . . Secondary Targets 2 | . . 2 Max Gunslinging Chain 1 | . . 1 Shots Hit Robots 48 | . 26 22 Core Hits 50 | . 36 14 Critical Kills . | . . . Critical Parts Destroyed 1 | . . 1 Critical Strikes 1 | . . 1 Destroy 1 | . . 1 Melee Attacks . | . . . Impact . | . . . Slashing . | . . . Piercing . | . . . Sneak Attacks . | . . . Combat Hostiles . | . . . Follow-up Attacks . | . . . Damage Inflicted 1999 | . 1632 367 Guns 178 | . 12 166 Cannons . | . . . Explosions 1821 | . 1620 201 Melee . | . . . Ramming . | . . . Kinetic 125 | . 12 113 Thermal . | . . . Explosive 1760 | . 1559 201 Electromagnetic 114 | . 61 53 Impact . | . . . Slashing . | . . . Piercing . | . . . Highest Corruption . | . . . Average Corruption . | . . . Corruption Purged . | . . . Corruption Blocked . | . . . Overload Shots . | . . . Overflow Damage 33 | . 33 . Projectiles . | . . . Explosions 33 | . 33 . Melee . | . . . Knockbacks . | . . . Impact . | . . . Kinetic . | . . . Secondary . | . . . Self-Inflicted Damage 249 | . 166 83 Shots 18 | . 10 8 Rammed . | . . . Targets Rammed . | . . . Kicked . | . . . Crushed . | . . . Highest Temperature 36 | . 21 36 Average Temperature 11 | . 7 13 Received Heat Transfer 201 | . 81 120 Siege Activations . | . . . Robots Corrupted . | . . . Combat Hostiles . | . . . Parts Fried . | . . . Impact Corruptions . | . . . Robots Melted . | . . . Combat Hostiles . | . . . Parts Melted . | . . . Heat Transferred . | . . . Parts Sabotaged . | . . . Parts Stolen . | . . . Parts Stripped . | . . . Power Chain Reactions . | . . . Alert | -11 -10 -9 ------- Run | Yrd Mat Mat Peak Influence 582 | . 582 410 Initial 215 | . . 215 Average 289 | . 304 315 Maximum Alert Level 2 | . 2 2 Low Security (%) 26 | 100 36 . Level 1 49 | . 20 97 Level 2 23 | . 42 2 Level 3 . | . . . Level 4 . | . . . Level 5 . | . . . High Security . | . . . Max Security . | . . . Squads Dispatched 3 | . 3 . Investigation . | . . . Extermination . | . . . Reinforcement 3 | . 3 . Assault . | . . . Garrison . | . . . Intercept . | . . . Searches Triggered . | . . . Construction Impeded . | . . . Haulers Reinforced . | . . . Active Scanning Responses . | . . . Cargo Convoy Interrupts . | . . . Stealth | -11 -10 -9 --------- Run | Yrd Mat Mat Distress Signals 2 | . 1 1 Communications Jammed . | . . . Distress Signals . | . . . Times Spotted 34 | . 23 11 Peak Tracking Total 5 | . 4 5 Tactical Retreats . | . . . Traps | -11 -10 -9 ------- Run | Yrd Mat Mat Traps Triggered . | . . . Indirectly . | . . . Trap Hack Attempts . | . . . Triggered . | . . . Disarmed . | . . . Reprogrammed . | . . . Reused . | . . . Traps Extracted . | . . . Installed . | . . . Triggered . | . . . Machines | -11 -10 -9 ---------- Run | Yrd Mat Mat Machines Disabled 4 | . 4 . Max in Single Turn 1 | . 1 . Machines Repaired . | . . . Machines Dismantled . | . . . Machines Sabotaged . | . . . Overloaded Fab Kills . | . . . Hacking | -11 -10 -9 --------- Run | Yrd Mat Mat Machines Accessed 2 | . 1 1 Terminals 1 | . 1 . Fabricators . | . . . Repair Stations . | . . . Recycling Units 1 | . . 1 Scanalyzers . | . . . Garrison Access . | . . . Total Hacks 4 | . 3 1 Successful 2 | . 1 1 Failed 2 | . 2 . Catastrophic . | . . . Database Lockouts . | . . . Manual 2 | . 2 . Terminals 3 | . 3 . Fabricators . | . . . Repair Stations . | . . . Recycling Units 1 | . . 1 Scanalyzers . | . . . Garrison Access . | . . . Terminal Hacks . | . . . Fabricator Hacks . | . . . Repair Station Hacks . | . . . Recycling Unit Hacks 1 | . . 1 Report Inventory 1 | . . 1 Scanalyzer . | . . . Garrison Access Hacks . | . . . Unauthorized Hacks 1 | . 1 . Terminals 1 | . 1 . Botnet 1 | . 1 . Fabricators . | . . . Repair Stations . | . . . Recycling Units . | . . . Scanalyzers . | . . . Garrison Access . | . . . Data Cores Recovered . | . . . Used . | . . . Hacking Detections 1 | . 1 . Full Trace Events . | . . . Feedback Events . | . . . Feedback Blocked . | . . . Robot Schematics Acquired . | . . . Robots Built . | . . . Authchips . | . . . Time . | . . . Total Robot Build Rating . | . . . Part Schematics Acquired . | . . . Parts Built . | . . . Authchips . | . . . Time . | . . . Total Part Build Rating . | . . . Parts Repaired . | . . . Time . | . . . Parts Recycled . | . . . Recycled Matter . | . . . Retrieved Matter . | . . . Retrieved Components . | . . . Parts Scanalyzed . | . . . Part Schematics Acquired . | . . . Parts Damaged . | . . . Bothacking | -11 -10 -9 ------------ Run | Yrd Mat Mat Used RIF Installer . | . . . Robots Hacked . | . . . Non-combat . | . . . Combat . | . . . Robot Hacks Applied . | . . . Relay Couplers Released . | . . . Fabnet Peak Effective % . | . . . Robots Rewired . | . . . Allies Hacked . | . . . Hacks Repelled . | . . . Allies | -11 -10 -9 -------- Run | Yrd Mat Mat Total Allies . | . . . Largest Group . | . . . Highest-Rated Group . | . . . Highest-Rated Ally . | . . . Total Orders . | . . . Ally Attacks . | . . . Total Damage . | . . . Kills . | . . . Allies Corrupted . | . . . Allies Melted . | . . . Intel | -11 -10 -9 ------- Run | Yrd Mat Mat Robot Analysis Total . | . . . Derelict Logs Recovered . | . . . Drone Launches . | . . . Drone Recoveries . | . . . Exploration | -11 -10 -9 ------------- Run | Yrd Mat Mat Turns Passed 895 | 56 487 352 Spaces Moved 416 | 32 242 142 Core 17 | 17 . . Treads 399 | 15 242 142 Legs . | . . . Wheels . | . . . Hover . | . . . Flight . | . . . Fastest Speed 50 | 50 160 160 Average Speed 171 | 139 160 199 Slowest Speed 250 | 250 160 240 Overloaded Moves . | . . . Propulsion Burnouts . | . . . Robots Hopped . | . . . Cave-ins Triggered . | . . . Exploration Rate (%) 26 | 3 59 18 Regions Visited 2 Branch Regions . Pre-discovered Areas . | . . . Known Exits Taken . | . . . Unknown Exits Taken 2 | 1 1 . Scrap Searched . | . . . Spaces Dug 10 | . 10 . Terrain Destroyed 188 | . 165 23 Melee . | . . . Projectile . | . . . AOE 188 | . 165 23 Terrain Rammed . | . . . Walls Destroyed . | . . . Machines Disabled . | . . . Actions | -11 -10 -9 --------- Run | Yrd Mat Mat Total 510 | 41 296 173 Wait 6 | . 6 . Move 414 | 31 241 142 Hop . | . . . Pick Up 10 | 4 4 2 Fast Attach 9 | 6 1 2 Attach 2 | . 1 1 Detach . | . . . Swap 2 | . 2 . Drop 2 | . 1 1 Fire 65 | . 40 25 Melee . | . . . Ram . | . . . Kick . | . . . Crush . | . . . Escape Stasis . | . . . Rewire . | . . . Trap . | . . . Miscellaneous . | . . . Route ------- -11/Scrapyard -10/Materials (discovered 4 exits: *Mat x3 / [*Min]) -9/Materials History --------- Turn | Location | Event 29 | -11/Scrapyard | Discovered new exit (range 16) 57 | -11/Scrapyard | Entered Materials 73 | -10/Materials | Discovered new exit (range 13) 202 | -10/Materials | Discovered new exit (range 16) 306 | -10/Materials | Build established: Mutant 422 | -10/Materials | Discovered new exit (range 16) 462 | -10/Materials | Discovered new exit (range 11) 544 | -10/Materials | Entered another Materials area 544 | -9/Materials | Evolved 2 slots: Utility x2 896 | -9/Materials | Self-destructed Last Messages --------------- 00713_ U-05 Engineer lays Concrete. 00715_ U-05 Engineer builds a Wall. 00720_ Acquired 18 matter. 00722_ U-05 Engineer lays Concrete. 00732_ Connecting with Recycling Unit... 00732_ Current location identified: Materials >>Recycling(Report) Matter reserves: 0 Inventory: Plasma Cutter (30%) Weight Redist. System (68%) 00826_ Acquired 20 matter. 00868_ K-01 Serf collects debris. 00876_ Hvy. EM Pulse Gun destroyed. 00878_ K-01 Serf collects debris. 00882_ G-34 Mercenary destroyed. 00882_ Switching to secondary target: G-47 Trooper. 00886_ Imp. Treads destroyed. 00888_ G-47 Trooper destroyed. Map ----- +----------------------------------------------------+ | ???????????????????????????????????????????? | | ???????????????????????????????????????????? | | ???????????????????????????????????????????? | | ???????????????????????????????????????????? | | ???????????????????????????????????????????? | | ???????????????????????????????????????????? | | ???????????????????????????????????????????? | | ???????????????????????????????????????????? | | ???????????????????????????????????????????? | | ???????????????????????????????????????????? | | ????????????????? ?????????????????????? | | ????????????????# #????????????????????? | | ????????????????# ##+#?????????????????? | | ????????????????# #?????????????????? | | ???????????????## #?????????????????? | | ??????????????? #?????????????????? | | ???????????????? #?????????????????? | | ???????????????? #?????????????????? | | ???????????????? #?????????????????? | | ????????????????? +?????????????????? | | ????????????????? #?????????????????? | | ?????????????????# #?????????????????? | | ?????????????????# ##+#??????????????? | | ?????????????????# #??????????????? | | ?????????????????# !%g #??????????????? | | ??????############ @ !%[ #??????????????? | | ??????# ## ##### #??????????????? | | ??????# ## #???????????????????????? | | ??????# ## #???????????????????????? | | ??????# ##+###?????????????????????? | | ??##### # #?????????????????????? | | ?##! ## # #?????????????????????? | | ?#! ## # !!!#?????????????????????? | | ?#! ## # !! #?????????????????????? | | ?#! ########/### !! #?????????????????????? | | ?#! ## #?????????????????????? | | ?##! ##### ## #?????????????????????? | | ??####+##### ## #?????????????????????? | | ??# # ## #?????????????????????? | | ??# """ #^^^##+###### #?????????????????? | | ??# "Y" # =[ #?????????????????? | | ??# + === +?????????????????? | | ??# # =[%% #?????????????????? | | ??# """ # [###########?????????????????? | | ??# """ # ## #???????????????????? | | ??# """ # ## #???????????????????? | | ??# # ## #???????????????????? | | ?########## ## """ ????????????????????? | | ?# ## # """ ????????????????????? | | ?# """"" # # """ ????????????????????? | +----------------------------------------------------+ Best States ------------- Heat Dissipation 28 Energy Generation 10 Energy Capacity 250 Matter Stores 245 Matter Capacity 300 Sight Range 16 Terrain Scan Density 10 Weapon Shielding 33 Evasion (%) 40 Recoil Reduction 2 Item Schematics ----------------- None Robot Schematics ------------------ None Fabricated ------------ Nothing Alien Tech Used ----------------- None Achievements -------------- Dramatic Entrance Challenges ------------ None Game ------ Seed NodeConstructAutopenetrator Manual? 0 Play Time 00:10:43 Cumulative 17.2 hours Start 2024.12.31 @ 23:04:52 End 2024.12.31 @ 23:13:54 Sessions 1 Manual Loads 0 Difficulty Rogue Special Mode None Game No. 19 Rogue 19 Adventurer 0 Explorer 0 Win Type - Total 0 Types 0/0/0/0/0/0/0/0/0 Lore% 13 Gallery% 16 Achievement% 20 Wizard Run 0 Options --------- Layout 1 ASCII 0 Keyboard 0 Movement Mouse Keybinds 0 Fullscreen 2 Font 24/Smallcaps Map View 50x35 Zoom Use 0% Tactical HUD 1 Map Filters NONE Filters NONE Steam 1 RUN: 0e524c8a-1f96-48c8-9ed3-acc24b4f949e